Cogmind - Beta 15 @@@ ROGUE MODE // 2025.05.15 @ 21:12:30 Player: MoYuYu Result: Destroyed by S-27 Virus with Autogun Performance ------------- Evolutions (3) 1500 Regions Visited (6) 1200 Robots Destroyed (7) 35 Value Destroyed (175) 175 Prototype IDs (24) 480 Alien Tech Used (0) 0 Bonus (570) 570 TOTAL SCORE: 3960 Bonus ------- Pacifist 270 Aligned with FarCom 300 Cogmind --------- Core Integrity 0/700 Matter 145/300 Energy 99/100 System Corruption 1% Temperature Cool (0) Movement Core (50) Location -7/Factory Parts ------- > --- POWER (1) -------- (None) > --- PROPULSION (2) --- (None) > --- UTILITY (8) ------ Improved Signal Interpreter Terrain Scan Processor Advanced Terrain Scan Processor Modified TNC > --- WEAPON (2) ------- (None) > --- INVENTORY (5) ---- Light Ion Engine Fission Core Gatling Laser Plasma Cannon Rocket Launcher Peak State ------------ > --- POWER ------------ (None) > --- PROPULSION ------- (None) > --- UTILITY ---------- Improved Signal Interpreter Terrain Scan Processor Modified TNC Improved Targeting Computer Advanced Targeting Computer > --- WEAPON ----------- Heavy Particle Gun > --- INVENTORY -------- Light Ion Engine Fission Core Fission Core EM Pulse Cannon Rocket Launcher [Rating: 21] Favorites ----------- Power None Propulsion None Utility Modified TNC Device Seismic Detector Processor Modified TNC Weapon Plasma Flamer Energy Gun Heavy Particle Gun Energy Cannon Plasma Cannon Ballistic Gun Autogun Launcher Rocket Launcher Special Weapon Plasma Flamer Build | -11 -10 -10 -10 -9 -8 -7 ------- Run | Yrd Mat Min Exi Min Mat Fac Slots Evolved 6 | . . . . . 4 2 Power . | . . . . . . . Propulsion . | . . . . . . . Utility 6 | . . . . . 4 2 Weapon . | . . . . . . . Parts Attached 14 | . 2 . 1 1 5 5 Power . | . . . . . . . Engine . | . . . . . . . Core . | . . . . . . . Reactor . | . . . . . . . Propulsion . | . . . . . . . Treads . | . . . . . . . Leg . | . . . . . . . Wheel . | . . . . . . . Hover . | . . . . . . . Flight . | . . . . . . . Utility 8 | . 2 . 1 . 4 1 Device 2 | . 2 . . . . . Storage . | . . . . . . . Processor 6 | . . . 1 . 4 1 Hackware . | . . . . . . . Protection . | . . . . . . . Artifact . | . . . . . . . Weapon 6 | . . . . 1 1 4 Energy Gun 2 | . . . . . 1 1 Energy Cannon 1 | . . . . . . 1 Ballistic Gun 1 | . . . . . . 1 Ballistic Cannon . | . . . . . . . Launcher 1 | . . . . . . 1 Special Weapon 1 | . . . . 1 . . Impact Weapon . | . . . . . . . Slashing Weapon . | . . . . . . . Piercing Weapon . | . . . . . . . Special Melee Weapon . | . . . . . . . Unidentified Prototypes 1 | . . . . . 1 . Parts Lost 4 | . . . . . . 4 Power . | . . . . . . . Propulsion . | . . . . . . . Utility 2 | . . . . . . 2 Weapon 2 | . . . . . . 2 Highest Loss Streak 2 | . . . . . . 2 To Critical Strikes 1 | . . . . . . 1 Average Backups 4 | 1 2 2 4 5 4 5 Power 2 | . 1 1 3 4 3 2 Propulsion . | . . . . . . . Utility . | . . . . . . . Weapon 1 | . 1 1 1 1 1 2 Tool/Special . | . . . . . . . Unused Backups 6 | . . . . . 2 4 Power 4 | . . . . . 1 3 Propulsion . | . . . . . . . Utility . | . . . . . . . Weapon 2 | . . . . . 1 1 Tool/Special . | . . . . . . . Average Slot Usage (%) 31 | . 16 28 19 39 31 39 Device 8 | . 16 28 14 14 7 . Processor 17 | . . . 5 14 14 34 Energy Gun 1 | . . . . . 1 2 Special Weapon 3 | . . . . 11 7 . Peak Build Rating 21 | . 2 2 8 13 21 21 Average Rating 12 | . 1 2 4 12 14 18 On Entrance 6 | . . 2 2 8 13 21 Naked Turns 24 | . 24 . . . . . Heaviest Build 7 | . 2 2 1 4 7 4 Greatest Support 3 | 3 3 3 3 3 3 3 Greatest Overweight (x) 2 | . . . . 1 2 1 Average Overweight (x) . | . . . . . . . Largest Inventory Capacity 5 | 5 5 5 5 5 5 5 Average Capacity 5 | 5 5 5 5 5 5 5 Most Carried 5 | 2 2 2 5 5 5 5 Average Carried 4 | 1 2 2 4 5 4 4 Final Capacity 5 | 5 5 5 5 5 5 5 Final Carried 5 | 2 2 2 5 5 5 5 Class Distribution -------------------- 100% | Mutant Dominant Class ---------------- Mutant | -10/Materials Mutant | -10/Mines Mutant | -10/Exiles Mutant | -9/Mines Mutant | -8/Materials Mutant | -7/Factory Resources | -11 -10 -10 -10 -9 -8 -7 ----------- Run | Yrd Mat Min Exi Min Mat Fac Matter Collected 261 | 176 36 . . . 29 20 Remotely . | . . . . . . . Salvage Created 71 | . . . . . 29 42 Parts 4 | . . . . . 1 3 Haulers Intercepted . | . . . . . . . Recyclers Shooed . | . . . . . . . Parts Field Recycled . | . . . . . . . Retrieved Matter . | . . . . . . . Parts Self-Destructed . | . . . . . . . Prevented . | . . . . . . . Kills | -11 -10 -10 -10 -9 -8 -7 ------- Run | Yrd Mat Min Exi Min Mat Fac Combat Hostiles Destroyed 5 | . . . . . 1 4 Guns 1 | . . . . . . 1 AOE 3 | . . . . . . 3 Classes Destroyed 3 | . . . . . 2 1 Builder 2 | . . . . . 2 . Swarmer 4 | . . . . . . 4 Grunt 1 | . . . . . 1 . Best Kill Streak 3 | . . . . . 2 3 Combat Bots Only 3 | . . . . . 1 3 Max Kills in Single Turn 2 | . . . . . 1 2 Gunslinging . | . . . . . . . Exploded 2 | . . . . . . 2 Melee . | . . . . . . . Uniques/NPCs Destroyed . | . . . . . . . Combat | -11 -10 -10 -10 -9 -8 -7 -------- Run | Yrd Mat Min Exi Min Mat Fac Hostile Shots Fired 116 | . 10 . . . 8 98 Missed 44 | . 4 . . . 2 38 Hits 72 | . 6 . . . 6 60 Projectile 72 | . 6 . . . 6 60 Critical Strikes 2 | . . . . . 1 1 Damage Taken 1082 | . 56 . . . 85 941 Core 793 | . 41 . . . 43 709 Absorbed by Shields . | . . . . . . . Core Remaining (%) 91 | 100 . . . 83 92 . Volleys Fired 33 | . . . . 1 7 25 Largest 1 | . . . . 1 1 1 Hottest 100 | . . . . 100 100 80 Shots Fired 33 | . . . . 1 7 25 Gun 18 | . . . . . . 18 Cannon 4 | . . . . . . 4 Launcher 3 | . . . . . . 3 Special 8 | . . . . 1 7 . Kinetic 9 | . . . . . . 9 Thermal 21 | . . . . 1 7 13 Explosive 3 | . . . . . . 3 Electromagnetic . | . . . . . . . Robot Hit Streak 7 | . . . . . 7 4 Robot Miss Streak 4 | . . . . . . 4 Penetration Max . | . . . . . . . Secondary Targets . | . . . . . . . Shots Hit Robots 13 | . . . . . 7 6 Core Hits 9 | . 1 . . . 2 6 Critical Kills . | . . . . . . . Critical Parts Destroyed . | . . . . . . . Critical Strikes 2 | . . . . . 2 . Burn 2 | . . . . . 2 . Melee Attacks . | . . . . . . . Impact . | . . . . . . . Slashing . | . . . . . . . Piercing . | . . . . . . . Sneak Attacks . | . . . . . . . Combat Hostiles . | . . . . . . . Follow-up Attacks . | . . . . . . . Damage Inflicted 513 | . 18 . . . 88 407 Guns 122 | . . . . . . 122 Cannons . | . . . . . . . Explosions 285 | . . . . . . 285 Melee . | . . . . . . . Ramming 18 | . 18 . . . . . Kinetic . | . . . . . . . Thermal 210 | . . . . . 88 122 Explosive 285 | . . . . . . 285 Electromagnetic . | . . . . . . . Impact . | . . . . . . . Slashing . | . . . . . . . Piercing . | . . . . . . . Highest Corruption 1 | . . . . . . 1 Average Corruption 1 | . . . . . . 1 Corruption Purged . | . . . . . . . Corruption Blocked . | . . . . . . . Overload Shots . | . . . . . . . Overflow Damage 13 | . . . . . . 13 Projectiles . | . . . . . . . Explosions 13 | . . . . . . 13 Melee . | . . . . . . . Knockbacks . | . . . . . . . Impact . | . . . . . . . Kinetic . | . . . . . . . Secondary . | . . . . . . . Self-Inflicted Damage 33 | . 8 . . . . 25 Shots 2 | . . . . . . 2 Rammed 4 | . 4 . . . . . Targets Rammed 4 | . 4 . . . . . Kicked . | . . . . . . . Crushed . | . . . . . . . Highest Temperature 128 | . . . . 50 128 48 Average Temperature 35 | . . . . 33 45 20 Received Heat Transfer 105 | . 6 . . . 54 45 Siege Activations . | . . . . . . . Martial Activations . | . . . . . . . Shielding Activations . | . . . . . . . Robots Disrupted . | . . . . . . . Combat Hostiles . | . . . . . . . Robots Corrupted . | . . . . . . . Combat Hostiles . | . . . . . . . Parts Fried . | . . . . . . . Impact Corruptions . | . . . . . . . Robots Melted 1 | . . . . . 1 . Combat Hostiles 1 | . . . . . 1 . Parts Melted 3 | . . . . . 3 . Heat Transferred 1128 | . . . . . 880 248 Parts Sabotaged . | . . . . . . . Parts Stolen . | . . . . . . . Parts Stripped . | . . . . . . . Power Chain Reactions . | . . . . . . . Alert | -11 -10 -10 -10 -9 -8 -7 ------- Run | Yrd Mat Min Exi Min Mat Fac Maximum Alert Level . | . . . . . . . Low Security (%) 100 | 100 100 100 . 100 100 100 Level 1 . | . . . . . . . Level 2 . | . . . . . . . Level 3 . | . . . . . . . Level 4 . | . . . . . . . Level 5 . | . . . . . . . High Security . | . . . . . . . Max Security . | . . . . . . . Peak Influence 108 | . 65 21 . 20 20 108 Initial 21 | . . 21 . . 7 . Average 22 | . 16 21 . 2 2 51 Influence Increases 278 | . 75 . . 30 30 143 Destroy 0b10 Robot/C 100 | . . . . . 20 80 Destroy 0b10 Robot/NC 10 | . . . . . 10 . Destroy Leader 10 | . . . . . . 10 Successful Hack 30 | . 30 . . . . . Disable Machine 15 | . . . . . . 15 Destroy Structure 23 | . . . . . . 23 Lose Combat Pursuer 90 | . 45 . . 30 . 15 Influence Decreases 245 | . 20 34 21 10 50 110 Entered New Map 68 | . . 34 21 . 13 . Time Decay 157 | . 20 . . 10 37 90 Lost Part 20 | . . . . . . 20 Squads Dispatched 4 | . 3 . . . . 1 Investigation 1 | . 1 . . . . . Extermination 1 | . . . . . . 1 Reinforcement 2 | . 2 . . . . . Assault . | . . . . . . . Garrison . | . . . . . . . Intercept . | . . . . . . . Searches Triggered . | . . . . . . . Construction Impeded . | . . . . . . . Haulers Reinforced . | . . . . . . . Active Scanning Responses . | . . . . . . . Cargo Convoy Interrupts . | . . . . . . . Stealth | -11 -10 -10 -10 -9 -8 -7 --------- Run | Yrd Mat Min Exi Min Mat Fac Distress Signals 3 | . 1 . . 1 . 1 Communications Jammed . | . . . . . . . Distress Signals . | . . . . . . . Times Spotted 28 | . 9 . . 1 4 14 Peak Tracking Total 8 | . 7 . . 2 2 8 Tactical Retreats 4 | . 1 . . 2 . 1 Traps | -11 -10 -10 -10 -9 -8 -7 ------- Run | Yrd Mat Min Exi Min Mat Fac Traps Triggered 2 | . 1 . . . . 1 Indirectly . | . . . . . . . Trap Hack Attempts . | . . . . . . . Triggered . | . . . . . . . Disarmed . | . . . . . . . Reprogrammed . | . . . . . . . Reused . | . . . . . . . Traps Extracted . | . . . . . . . Installed . | . . . . . . . Triggered . | . . . . . . . Machines | -11 -10 -10 -10 -9 -8 -7 ---------- Run | Yrd Mat Min Exi Min Mat Fac Machines Disabled 1 | . . . . . . 1 Max in Single Turn 1 | . . . . . . 1 Garrison Access 1 | . . . . . 1 . Machines Repaired . | . . . . . . . Machines Dismantled . | . . . . . . . Machines Sabotaged . | . . . . . . . Overloaded Fab Kills . | . . . . . . . Hacking | -11 -10 -10 -10 -9 -8 -7 --------- Run | Yrd Mat Min Exi Min Mat Fac Machines Accessed 6 | . 2 . 1 . 1 2 Terminals 3 | . 2 . . . . 1 Fabricators . | . . . . . . . Repair Stations . | . . . . . . . Recycling Units . | . . . . . . . Scanalyzers . | . . . . . . . Garrison Access 2 | . . . . . 1 1 Total Hacks 14 | . 6 . 1 . 3 4 Successful 4 | . 2 . 1 . 1 . Failed 10 | . 4 . . . 2 4 Catastrophic 1 | . 1 . . . . . Database Lockouts . | . . . . . . . Manual 8 | . 5 . 1 . . 2 Terminals 8 | . 6 . . . . 2 Fabricators . | . . . . . . . Repair Stations . | . . . . . . . Recycling Units . | . . . . . . . Scanalyzers . | . . . . . . . Garrison Access 5 | . . . . . 3 2 Terminal Hacks 2 | . 1 . 1 . . . Branch Access Points 1 | . 1 . . . . . Proto ID Catalog 1 | . . . 1 . . . Fabricator Hacks . | . . . . . . . Repair Station Hacks . | . . . . . . . Recycling Unit Hacks . | . . . . . . . Scanalyzer . | . . . . . . . Garrison Access Hacks 1 | . . . . . 1 . Seal Access 1 | . . . . . 1 . Unauthorized Hacks 1 | . 1 . . . . . Terminals 1 | . 1 . . . . . Botnet 1 | . 1 . . . . . Fabricators . | . . . . . . . Repair Stations . | . . . . . . . Recycling Units . | . . . . . . . Scanalyzers . | . . . . . . . Garrison Access . | . . . . . . . Data Cores Recovered . | . . . . . . . Used . | . . . . . . . Hacking Detections 5 | . 2 . . . 1 2 Full Trace Events 1 | . 1 . . . . . Feedback Events . | . . . . . . . Feedback Blocked . | . . . . . . . Robot Schematics Acquired . | . . . . . . . Robots Built . | . . . . . . . Authchips . | . . . . . . . Time . | . . . . . . . Total Robot Build Rating . | . . . . . . . Part Schematics Acquired . | . . . . . . . Parts Built . | . . . . . . . Authchips . | . . . . . . . Time . | . . . . . . . Total Part Build Rating . | . . . . . . . Parts Repaired . | . . . . . . . Time . | . . . . . . . Parts Recycled . | . . . . . . . Recycled Matter . | . . . . . . . Retrieved Matter . | . . . . . . . Retrieved Components . | . . . . . . . Parts Scanalyzed . | . . . . . . . Part Schematics Acquired . | . . . . . . . Parts Damaged . | . . . . . . . Bothacking | -11 -10 -10 -10 -9 -8 -7 ------------ Run | Yrd Mat Min Exi Min Mat Fac Used RIF Installer . | . . . . . . . Robots Hacked . | . . . . . . . Non-combat . | . . . . . . . Combat . | . . . . . . . Robot Hacks Applied . | . . . . . . . Relay Couplers Released . | . . . . . . . Fabnet Peak Effective % . | . . . . . . . Robots Rewired . | . . . . . . . Allies Hacked . | . . . . . . . Hacks Repelled . | . . . . . . . Allies | -11 -10 -10 -10 -9 -8 -7 -------- Run | Yrd Mat Min Exi Min Mat Fac Total Allies . | . . . . . . . Largest Group . | . . . . . . . Highest-Rated Group . | . . . . . . . Highest-Rated Ally . | . . . . . . . Total Orders . | . . . . . . . Ally Attacks . | . . . . . . . Total Damage . | . . . . . . . Kills . | . . . . . . . Allies Corrupted . | . . . . . . . Allies Melted . | . . . . . . . Intel | -11 -10 -10 -10 -9 -8 -7 ------- Run | Yrd Mat Min Exi Min Mat Fac Active Infowar (turns) 859 | . 77 16 109 112 255 290 Sensors 71 | . 55 16 . . . . Seismic 525 | . 77 16 109 112 211 . T.N.C. 706 | . . . 49 112 255 290 Robot Analysis Total . | . . . . . . . Derelict Logs Recovered . | . . . . . . . Drone Launches . | . . . . . . . Drone Recoveries . | . . . . . . . Exploration | -11 -10 -10 -10 -9 -8 -7 ------------- Run | Yrd Mat Min Exi Min Mat Fac Turns Passed 906 | 16 108 16 109 112 255 290 Spaces Moved 1245 | 28 193 32 208 119 237 428 Core 1245 | 28 193 32 208 119 237 428 Treads . | . . . . . . . Legs . | . . . . . . . Wheels . | . . . . . . . Hover . | . . . . . . . Flight . | . . . . . . . Fastest Speed 50 | 50 50 50 50 50 50 50 Average Speed 60 | 50 50 50 50 90 84 50 Slowest Speed 150 | 50 50 50 50 100 150 100 Overloaded Moves . | . . . . . . . Propulsion Burnouts . | . . . . . . . Robots Hopped . | . . . . . . . Potential Cave-ins . | . . . . . . . Cave-ins Triggered . | . . . . . . . Exploration Rate (%) 23 | 3 38 8 60 23 20 10 Regions Visited 6 Branch Regions 3 Pre-discovered Areas . | . . . . . . . Known Exits Taken 2 | . 1 . . . 1 . Unknown Exits Taken 4 | 1 . 1 1 1 . . Scrap Searched . | . . . . . . . Spaces Dug . | . . . . . . . Terrain Destroyed 32 | . . . . . . 32 Melee . | . . . . . . . Projectile . | . . . . . . . AOE 32 | . . . . . . 32 Terrain Rammed . | . . . . . . . Walls Destroyed . | . . . . . . . Machines Disabled . | . . . . . . . Actions | -11 -10 -10 -10 -9 -8 -7 --------- Run | Yrd Mat Min Exi Min Mat Fac Total 1351 | 29 201 31 212 121 280 477 Wait 37 | . 1 . . 1 26 9 Move 1239 | 27 192 31 207 118 236 428 Hop . | . . . . . . . Pick Up 9 | 2 . . 3 . 2 2 Fast Attach 15 | . 4 . 1 1 5 4 Attach 1 | . . . . . . 1 Detach 2 | . . . . . . 2 Swap 2 | . . . . . . 2 Drop 9 | . . . 1 . 4 4 Fire 33 | . . . . 1 7 25 Melee . | . . . . . . . Ram 4 | . 4 . . . . . Kick . | . . . . . . . Crush . | . . . . . . . Escape Stasis . | . . . . . . . Rewire . | . . . . . . . Trap . | . . . . . . . Miscellaneous . | . . . . . . . Route ------- -11/Scrapyard -10/Materials (discovered 4 exits: [*Mat x2] / *Min / [*Sub]) -10/Mines -10/Exiles -9/Mines -8/Materials -7/Factory History --------- Turn | Location | Event 6 | -11/Scrapyard | Discovered new exit (range 15) 17 | -11/Scrapyard | Entered Materials 63 | -10/Materials | Discovered new exit (range 16) 83 | -10/Materials | Identified exit to Mines 93 | -10/Materials | Discovered new exit (range 11) 109 | -10/Materials | Discovered new exit (range 7) 125 | -10/Materials | Entered Mines 139 | -10/Mines | Deemed a non-threat by the Exiles lab entrance 139 | -10/Mines | Discovered new exit (range 5) 141 | -10/Mines | Entered Exiles 160 | -10/Exiles | Met 8R-AWN 167 | -10/Exiles | Met EX-HEX 180 | -10/Exiles | Met EX-BIN 186 | -10/Exiles | Aligned with FarCom system 187 | -10/Exiles | Given EX-Vault access code 198 | -10/Exiles | Opened EX-Vault 201 | -10/Exiles | Found Modified TNC 213 | -10/Exiles | Warned to stay clear of 0b10 Research branches 227 | -10/Exiles | Met EX-DEC 245 | -10/Exiles | Discovered new exit (range 10) 250 | -10/Exiles | Left Exiles lab with Modified TNC 250 | -10/Exiles | Entered Mines 261 | -9/Mines | A weapon hastily lodged in a ceiling crevice suddenly fell to the ground 302 | -9/Mines | Build established: Mutant 354 | -9/Mines | Discovered new exit (range 6) 362 | -9/Mines | Entered Materials 362 | -8/Materials | Evolved 4 slots: Utility x4 604 | -8/Materials | Discovered new exit (range 16) 617 | -8/Materials | Identified exit to Factory 617 | -8/Materials | Entered Factory 617 | -7/Factory | Evolved 2 slots: Utility x2 791 | -7/Factory | Core integrity fell below 50% 889 | -7/Factory | Core integrity fell below 20% 907 | -7/Factory | Destroyed by S-27 Virus with Autogun Last Messages --------------- detected, Programmers report to Factory Zone 4W. 00772_ Connecting with Garrison Access... 00783_ Critical hit (Destroy). 00783_ Autogun destroyed. 00794_ Acquired Gatling Laser. 00801_ S-27 Virus destroyed. 00805_ Acquired 20 matter. 00806_ Dropped Gatling Laser. 00807_ Acquired Gatling Laser. 00808_ Dropped Rigged Fission Core. 00823_ Acquired Adv. Terrain Scan Processor. 00848_ K-01 Serf collects debris. 00881_ U-05 Engineer works on Subcomponent Replicator. 00886_ U-05 Engineer completes Subcomponent Replicator. 00900_ K-01 Serf cleans the Subcomponent Replicator. 00906_ Adv. Targeting Computer destroyed. Map ----- +----------------------------------------------------+ | | | ?????????????????????????????????????????????????? | | ?????????????????????????????????????????????????? | | ?????????????????????????????????????????????????? | | ?????????????????????????????????????????????????? | | ?????????????????????????????????????????????????? | | ?????????????????????????????????????????????????? | | ?????????????????????????????????????????????????? | | ?????????????????????????????????????????????????? | | ?????????????????????????????????????????????????? | | ?????????????????????????????????????????????????? | | ?????????????????????????????????????????????????? | | ?????????????????????????????????????????????????? | | ?????????????????????????????????????????????????? | | ????????????????????????############?????????????? | | ???????????????????????? ??????????????? | | ???????????????????????? ??????????????? | | ???????????????????????? ""??????????????? | | ???????????????????????? """"????????????? | | ????????????????????????# """ ????????????? | | ????????????????????????# ?????????????? | | ????????????????????????# """?????????????? | | ????????????????????????# """"? ??????????? | | ????????????????????????# """ ????????? | | ????????????????????????# ????????? | | ????????????????????????#@ """?????????????? | | ????????????????????????# """"" ??????????? | | ????????????????????????# """ ????????? | | ???????????????######???# ????????? | | ???????????????? ??# """"" ?????????? | | ????????????????""" ??# """"" ???????? | | ????????????????""" !?# """ ????????? | | ???????????????"""" ?# k ????????? | | ???????????????"""" * # """"" ???????? | | ???????????????"""" # """"" ?????? | | ???????????????"""" + """ ????? | | ??????????????# * # ###ss ????? | | ??????????????########### #?# s """"" ?????? | | ????????????????????????# #?# """"" #????????? | | ????????????????????????# #?# """ #????????? | | ????????????????????????#+#?# p #????????? | | ????????????????????????????# """"" #????????? | | ????????????????????????????# """"" #????????? | | ????????????????????????????# """ ##???????? | | ????????????????????????????# #???????? | | ????????????????????????????# """"" #???????? | | ?????????????##??###????????# """"" #???????? | | ????????????# #???????# """ #######+# | | ??????????### +???????# | | ??????????? " #???????# """"" | +----------------------------------------------------+ Best States ------------- Heat Dissipation 34 Energy Generation 5 Energy Capacity 100 Matter Stores 300 Matter Capacity 300 Sight Range 16 Robot Scan Range 14 Terrain Scan Density 285 Evasion (%) 50 Targeting Accuracy 14 Item Schematics ----------------- None Robot Schematics ------------------ None Fabricated ------------ Nothing Repaired ---------- Nothing Alien Tech Used ----------------- None Achievements -------------- None Challenges ------------ None Game ------ Seed RingShrapnelGuard Manual? 0 Play Time 00:16:54 Cumulative 157.5 hours Start 2025.05.15 @ 20:56:15 End 2025.05.15 @ 21:12:30 Sessions 1 Manual Loads 0 Difficulty Rogue Special Mode None Game No. 82 Rogue 72 Adventurer 5 Explorer 5 Win Type - Total 9 Types 7/0/1/1/0/0/0/0/0/0 Lore% 43 Gallery% 59 Achievement% 54 Wizard Run 0 Options --------- Layout 2 ASCII 0 Keyboard 0 Movement Mouse Keybinds 1 Fullscreen 1 Font 20/Terminus Map View 50x44 Zoom Use 0% Tactical HUD 1 Map Filters NONE Filters SATURATION(60) Steam 1 RUN: 41d8a096-e09f-4186-9a69-71e3530c128c